[Event "Early-Titled-Tuesday-Blitz-October-03-2023"]
[Site "Chess.com"]
[Date "2023.10.03"]
[Round "10"]
[White "Kgutierrez95"]
[Black "ploxoi"]
[Result "0-1"]
[WhiteElo "2223"]
[BlackElo "2462"]
[TimeControl "180+1"]
[EndTime "9:57:54 PDT"]
[Termination "ploxoi won on time"]

1. e4 {[%clk 0:03:00.9]} 1... c5 {[%clk 0:02:59.6]} 2. Nf3 {[%clk 0:03:00.6]}
2... e6 {[%clk 0:03:00.1]} 3. d4 {[%clk 0:03:00.6]} 3... cxd4 {[%clk 0:03:01]}
4. Nxd4 {[%clk 0:03:01.3]} 4... Nc6 {[%clk 0:03:01.9]} 5. Nc3 {[%clk 0:03:01.5]}
5... Qc7 {[%clk 0:03:01.8]} 6. Ndb5 {[%clk 0:03:01]} 6... Qb8 {[%clk 0:03:01.8]}
7. Be3 {[%clk 0:02:58.4]} 7... a6 {[%clk 0:03:02]} 8. Nd4 {[%clk 0:02:58.1]}
8... Nf6 {[%clk 0:03:01.7]} 9. Be2 {[%clk 0:02:52.7]} 9... Be7 {[%clk
0:03:01.1]} 10. O-O {[%clk 0:02:51.8]} 10... O-O {[%clk 0:03:01.5]} 11. f4
{[%clk 0:02:48.3]} 11... d6 {[%clk 0:03:01.6]} 12. Kh1 {[%clk 0:02:46.2]} 12...
Re8 {[%clk 0:02:58]} 13. f5 {[%clk 0:02:42]} 13... Nxd4 {[%clk 0:02:48.5]} 14.
Bxd4 {[%clk 0:02:40.9]} 14... b5 {[%clk 0:02:49]} 15. a3 {[%clk 0:02:36.4]}
15... Bb7 {[%clk 0:02:46.4]} 16. fxe6 {[%clk 0:02:24.5]} 16... fxe6 {[%clk
0:02:45.7]} 17. Bf3 {[%clk 0:02:15.2]} 17... e5 {[%clk 0:02:25.1]} 18. Be3
{[%clk 0:02:13.5]} 18... Qc7 {[%clk 0:02:25.8]} 19. Bg5 {[%clk 0:02:03]} 19...
Rac8 {[%clk 0:02:25]} 20. Bxf6 {[%clk 0:02:01.1]} 20... Bxf6 {[%clk 0:02:25.9]}
21. Qd2 {[%clk 0:01:58.1]} 21... Qc5 {[%clk 0:02:20.5]} 22. Rad1 {[%clk
0:01:56.1]} 22... Red8 {[%clk 0:02:19.2]} 23. Rf2 {[%clk 0:01:41.2]} 23... Rc7
{[%clk 0:02:15.5]} 24. Nd5 {[%clk 0:01:37.3]} 24... Bxd5 {[%clk 0:02:11.2]} 25.
Qxd5+ {[%clk 0:01:36.5]} 25... Qxd5 {[%clk 0:02:11.6]} 26. Rxd5 {[%clk
0:01:37.4]} 26... Kf8 {[%clk 0:02:11.1]} 27. Rfd2 {[%clk 0:01:35.1]} 27... Ke7
{[%clk 0:02:11.4]} 28. c3 {[%clk 0:01:32.2]} 28... Rc4 {[%clk 0:02:09.9]} 29. g3
{[%clk 0:01:28.3]} 29... Rdc8 {[%clk 0:02:10.1]} 30. h4 {[%clk 0:01:24.8]} 30...
R8c7 {[%clk 0:02:09.4]} 31. Rxd6 {[%clk 0:01:20.4]} 31... R4c6 {[%clk
0:02:05.2]} 32. R6d5 {[%clk 0:01:14.3]} 32... Rc5 {[%clk 0:02:03.6]} 33. Bg4
{[%clk 0:01:06.7]} 33... Rxd5 {[%clk 0:02:02]} 34. Rxd5 {[%clk 0:01:05.4]} 34...
Rb7 {[%clk 0:01:57.5]} 35. Kg2 {[%clk 0:01:01]} 35... g6 {[%clk 0:01:51.4]} 36.
Kf2 {[%clk 0:00:58.2]} 36... h5 {[%clk 0:01:48.5]} 37. Be2 {[%clk 0:00:56.8]}
37... Rb6 {[%clk 0:01:41.3]} 38. Ke3 {[%clk 0:00:54.7]} 38... Bg7 {[%clk
0:01:39.3]} 39. Bf1 {[%clk 0:00:53.5]} 39... Bh6+ {[%clk 0:01:32.7]} 40. Ke2
{[%clk 0:00:51.8]} 40... Bc1 {[%clk 0:01:23.7]} 41. Rxe5+ {[%clk 0:00:44.8]}
41... Kf6 {[%clk 0:01:23.9]} 42. Rd5 {[%clk 0:00:38.5]} 42... Bxb2 {[%clk
0:01:23.7]} 43. Kd3 {[%clk 0:00:32.9]} 43... Bxa3 {[%clk 0:01:22]} 44. Bh3
{[%clk 0:00:32.7]} 44... Bd6 {[%clk 0:01:19.7]} 45. Bd7 {[%clk 0:00:25.9]} 45...
Bxg3 {[%clk 0:01:17.3]} 46. Kd4 {[%clk 0:00:21.8]} 46... Bf2+ {[%clk 0:00:41.9]}
47. Kd3 {[%clk 0:00:20.6]} 47... Bxh4 {[%clk 0:00:41.1]} 48. e5+ {[%clk
0:00:20.4]} 48... Ke7 {[%clk 0:00:41.5]} 49. Bh3 {[%clk 0:00:18.9]} 49... Rb7
{[%clk 0:00:41.2]} 50. e6 {[%clk 0:00:18.3]} 50... Bf6 {[%clk 0:00:40.9]} 51.
Rd7+ {[%clk 0:00:17.6]} 51... Rxd7+ {[%clk 0:00:41]} 52. exd7 {[%clk 0:00:18.5]}
52... g5 {[%clk 0:00:41.2]} 53. Bf5 {[%clk 0:00:18]} 53... g4 {[%clk 0:00:40.5]}
54. Ke4 {[%clk 0:00:17.9]} 54... Bxc3 {[%clk 0:00:40.5]} 55. Kd5 {[%clk
0:00:16.8]} 55... Kd8 {[%clk 0:00:39.8]} 56. Kc6 {[%clk 0:00:17.1]} 56... Bd4
{[%clk 0:00:39.2]} 57. Bd3 {[%clk 0:00:12.8]} 57... h4 {[%clk 0:00:38.7]} 58.
Be2 {[%clk 0:00:12.3]} 58... g3 {[%clk 0:00:37.3]} 59. Bf1 {[%clk 0:00:12.4]}
59... b4 {[%clk 0:00:35.4]} 60. Kd5 {[%clk 0:00:09.9]} 60... b3 {[%clk
0:00:35.7]} 61. Kc4 {[%clk 0:00:09.4]} 61... b2 {[%clk 0:00:36.6]} 62. Bd3
{[%clk 0:00:09.1]} 62... g2 {[%clk 0:00:36.2]} 0-1

[Event "Early-Titled-Tuesday-Blitz-October-03-2023"]
[Site "Chess.com"]
[Date "2023.10.03"]
[Round "10"]
[White "Eagle_2019"]
[Black "igorkovalenko"]
[Result "1-0"]
[WhiteElo "2720"]
[BlackElo "2873"]
[TimeControl "180+1"]
[EndTime "9:58:00 PDT"]
[Termination "Eagle_2019 won by resignation"]

1. d4 {[%clk 0:03:00.9]} 1... Nf6 {[%clk 0:03:00]} 2. c4 {[%clk 0:02:58.7]} 2...
e6 {[%clk 0:02:59.7]} 3. Nf3 {[%clk 0:02:58.7]} 3... b6 {[%clk 0:02:59.6]} 4. g3
{[%clk 0:02:59]} 4... Ba6 {[%clk 0:02:59.6]} 5. b3 {[%clk 0:02:57.9]} 5... d5
{[%clk 0:02:59.6]} 6. cxd5 {[%clk 0:02:55.3]} 6... Bb4+ {[%clk 0:02:58.8]} 7.
Bd2 {[%clk 0:02:53.3]} 7... Bxd2+ {[%clk 0:02:59]} 8. Qxd2 {[%clk 0:02:53.6]}
8... Ne4 {[%clk 0:02:59.3]} 9. Qb2 {[%clk 0:02:37.7]} 9... exd5 {[%clk
0:02:59.1]} 10. Bg2 {[%clk 0:02:37.9]} 10... O-O {[%clk 0:02:59.1]} 11. O-O
{[%clk 0:02:38]} 11... Re8 {[%clk 0:02:59.6]} 12. Re1 {[%clk 0:02:31.7]} 12...
c5 {[%clk 0:02:59.6]} 13. Nbd2 {[%clk 0:02:26.6]} 13... Nc6 {[%clk 0:02:58.5]}
14. dxc5 {[%clk 0:02:23.6]} 14... bxc5 {[%clk 0:02:55.6]} 15. Nxe4 {[%clk
0:02:22.4]} 15... dxe4 {[%clk 0:02:55.6]} 16. Nd2 {[%clk 0:02:18.7]} 16... f5
{[%clk 0:02:34.3]} 17. Rac1 {[%clk 0:02:07.9]} 17... Nd4 {[%clk 0:02:33.8]} 18.
Nc4 {[%clk 0:01:58.1]} 18... Qf6 {[%clk 0:02:24.4]} 19. e3 {[%clk 0:01:45.4]}
19... Bxc4 {[%clk 0:02:15.4]} 20. exd4 {[%clk 0:01:44.4]} 20... Bd3 {[%clk
0:02:14.6]} 21. Rxc5 {[%clk 0:01:42.7]} 21... Rad8 {[%clk 0:02:14.9]} 22. Qc3
{[%clk 0:01:24.7]} 22... Qxd4 {[%clk 0:02:07.5]} 23. Qxd4 {[%clk 0:01:21.5]}
23... Rxd4 {[%clk 0:02:08.4]} 24. Rxf5 {[%clk 0:01:18.5]} 24... Re7 {[%clk
0:01:30.8]} 25. Rc1 {[%clk 0:00:58.7]} 25... g6 {[%clk 0:01:29.5]} 26. Rfc5
{[%clk 0:00:58.4]} 26... a6 {[%clk 0:01:19.6]} 27. Rc8+ {[%clk 0:00:57.2]} 27...
Kg7 {[%clk 0:01:19.4]} 28. R8c7 {[%clk 0:00:55.8]} 28... Rdd7 {[%clk 0:01:18.9]}
29. Rxd7 {[%clk 0:00:54.9]} 29... Rxd7 {[%clk 0:01:19.8]} 30. Re1 {[%clk
0:00:54.6]} 30... Rd4 {[%clk 0:01:18.5]} 31. f3 {[%clk 0:00:54.4]} 31... exf3
{[%clk 0:01:17.3]} 32. Bxf3 {[%clk 0:00:55.3]} 32... Bb5 {[%clk 0:01:17.3]} 33.
Rd1 {[%clk 0:00:42.4]} 33... Rb4 {[%clk 0:01:15.8]} 34. Kf2 {[%clk 0:00:39.3]}
34... Be8 {[%clk 0:01:06]} 35. Rd8 {[%clk 0:00:34.5]} 35... Kf7 {[%clk
0:01:05.8]} 36. Ra8 {[%clk 0:00:32.9]} 36... Rb6 {[%clk 0:01:01.1]} 37. Ra7+
{[%clk 0:00:32.8]} 37... Kf6 {[%clk 0:01:01.1]} 38. Rxh7 {[%clk 0:00:32]} 38...
Rd6 {[%clk 0:00:55]} 39. Ke3 {[%clk 0:00:30.4]} 39... Bb5 {[%clk 0:00:53.4]} 40.
Be4 {[%clk 0:00:27.9]} 40... Re6 {[%clk 0:00:52.4]} 41. Kf3 {[%clk 0:00:23.6]}
41... Rd6 {[%clk 0:00:47.6]} 42. Ke3 {[%clk 0:00:22.2]} 42... Re6 {[%clk
0:00:47.4]} 43. Kd4 {[%clk 0:00:22.4]} 43... Rd6+ {[%clk 0:00:47.2]} 44. Kc3
{[%clk 0:00:20.6]} 44... Re6 {[%clk 0:00:45.6]} 45. Bd5 {[%clk 0:00:17.1]} 45...
Re3+ {[%clk 0:00:28.2]} 46. Kd4 {[%clk 0:00:16.5]} 46... Rd3+ {[%clk 0:00:23]}
47. Kc5 {[%clk 0:00:16.5]} 47... Rd2 {[%clk 0:00:19.2]} 48. a4 {[%clk
0:00:16.2]} 48... Be2 {[%clk 0:00:18.8]} 49. Bc4 {[%clk 0:00:15.6]} 49... Rc2
{[%clk 0:00:18.1]} 50. Kb4 {[%clk 0:00:12.9]} 50... g5 {[%clk 0:00:13.6]} 51.
Bxe2 {[%clk 0:00:12.2]} 51... Rxe2 {[%clk 0:00:14.5]} 52. Ka5 {[%clk 0:00:12.5]}
52... Kg6 {[%clk 0:00:13.8]} 53. Rh8 {[%clk 0:00:12.5]} 53... Re6 {[%clk
0:00:13.3]} 54. b4 {[%clk 0:00:10.8]} 54... Kg7 {[%clk 0:00:14.2]} 55. Ra8
{[%clk 0:00:09.1]} 55... Rh6 {[%clk 0:00:12.5]} 56. Ra7+ {[%clk 0:00:09]} 56...
Kg8 {[%clk 0:00:12.5]} 57. Rxa6 {[%clk 0:00:09.2]} 57... Rxh2 {[%clk 0:00:12.6]}
58. Rg6+ {[%clk 0:00:09.1]} 58... Kf7 {[%clk 0:00:13.5]} 59. Rxg5 {[%clk
0:00:09.6]} 59... Kf6 {[%clk 0:00:14.4]} 60. Rc5 {[%clk 0:00:09.9]} 60... Ke6
{[%clk 0:00:15.3]} 61. b5 {[%clk 0:00:10.1]} 61... Kd6 {[%clk 0:00:16.2]} 62.
Rc1 {[%clk 0:00:10.1]} 62... Kd5 {[%clk 0:00:16.9]} 63. b6 {[%clk 0:00:10.4]}
1-0

[Event "Early-Titled-Tuesday-Blitz-October-03-2023"]
[Site "Chess.com"]
[Date "2023.10.03"]
[Round "10"]
[White "Alexei_Gubajdullin"]
[Black "JimDiGrease"]
[Result "0-1"]
[WhiteElo "2752"]
[BlackElo "2931"]
[TimeControl "180+1"]
[EndTime "9:58:08 PDT"]
[Termination "JimDiGrease won by resignation"]

1. d4 {[%clk 0:02:54.3]} 1... d5 {[%clk 0:02:59.3]} 2. Nf3 {[%clk 0:02:54.2]}
2... Nf6 {[%clk 0:02:59.6]} 3. Bf4 {[%clk 0:02:54.4]} 3... c5 {[%clk 0:02:57.8]}
4. e3 {[%clk 0:02:54.6]} 4... Nc6 {[%clk 0:02:53.5]} 5. Nbd2 {[%clk 0:02:54.8]}
5... Qb6 {[%clk 0:02:42.1]} 6. dxc5 {[%clk 0:02:50.1]} 6... Qxb2 {[%clk
0:02:40.6]} 7. c4 {[%clk 0:02:50.1]} 7... Bg4 {[%clk 0:02:22.7]} 8. Qb1 {[%clk
0:02:35.7]} 8... Qxb1+ {[%clk 0:02:13]} 9. Rxb1 {[%clk 0:02:35.5]} 9... O-O-O
{[%clk 0:01:43.1]} 10. Ng5 {[%clk 0:02:26.7]} 10... Bh5 {[%clk 0:01:40.7]} 11.
g4 {[%clk 0:02:25.3]} 11... Bg6 {[%clk 0:01:37.7]} 12. Bh3 {[%clk 0:01:23.6]}
12... e6 {[%clk 0:01:19.9]} 13. Rb5 {[%clk 0:01:02.2]} 13... a6 {[%clk
0:01:14.9]} 14. Rb2 {[%clk 0:00:51.1]} 14... Bxc5 {[%clk 0:01:13.8]} 15. O-O
{[%clk 0:00:48.4]} 15... Rd7 {[%clk 0:00:55]} 16. Bg3 {[%clk 0:00:29.8]} 16...
Bd3 {[%clk 0:00:50.4]} 17. cxd5 {[%clk 0:00:24.4]} 17... Nxd5 {[%clk 0:00:26.6]}
18. Rc1 {[%clk 0:00:23.9]} 18... Ba7 {[%clk 0:00:26.9]} 19. Nge4 {[%clk
0:00:20.8]} 19... Bxe4 {[%clk 0:00:16.4]} 20. Nxe4 {[%clk 0:00:20.4]} 20... Rhd8
{[%clk 0:00:15.4]} 21. Nc5 {[%clk 0:00:20.4]} 21... Bxc5 {[%clk 0:00:14.8]} 22.
Rxc5 {[%clk 0:00:20.5]} 22... Ne7 {[%clk 0:00:14.6]} 23. g5 {[%clk 0:00:19.5]}
23... Rd5 {[%clk 0:00:13.5]} 24. Rcc2 {[%clk 0:00:18.8]} 24... Rxg5 {[%clk
0:00:13.1]} 25. Kf1 {[%clk 0:00:18.4]} 25... Rb5 {[%clk 0:00:13.5]} 26. Bg2
{[%clk 0:00:17.9]} 26... Rxb2 {[%clk 0:00:13.1]} 27. Rxb2 {[%clk 0:00:18.2]}
27... Rd1+ {[%clk 0:00:13.4]} 28. Ke2 {[%clk 0:00:18]} 28... Rc1 {[%clk
0:00:12.1]} 29. Bd6 {[%clk 0:00:17.7]} 29... Nd5 {[%clk 0:00:11.5]} 30. Bg3
{[%clk 0:00:15.6]} 30... f5 {[%clk 0:00:10.3]} 31. Kd2 {[%clk 0:00:13.2]} 31...
Ra1 {[%clk 0:00:09.7]} 32. e4 {[%clk 0:00:13.5]} 32... fxe4 {[%clk 0:00:08]} 33.
Bxe4 {[%clk 0:00:13.6]} 33... g6 {[%clk 0:00:08.7]} 34. Bf3 {[%clk 0:00:13.3]}
34... b5 {[%clk 0:00:08.8]} 35. Bg4 {[%clk 0:00:13.5]} 35... Kd7 {[%clk
0:00:09]} 36. Ke2 {[%clk 0:00:12.3]} 36... Rxa2 {[%clk 0:00:07.9]} 37. Rxa2
{[%clk 0:00:11.9]} 37... Nc3+ {[%clk 0:00:08.5]} 38. Kd2 {[%clk 0:00:12.4]}
38... Nxa2 {[%clk 0:00:09.4]} 39. h4 {[%clk 0:00:12.3]} 39... Nab4 {[%clk
0:00:09.8]} 40. h5 {[%clk 0:00:12.6]} 40... gxh5 {[%clk 0:00:08.4]} 41. Bxh5
{[%clk 0:00:12.7]} 41... Nd5 {[%clk 0:00:09.3]} 42. Bf3 {[%clk 0:00:12.7]} 42...
Nf6 {[%clk 0:00:06.6]} 43. Bh4 {[%clk 0:00:12.3]} 43... Nd5 {[%clk 0:00:05.1]}
44. Be4 {[%clk 0:00:12.4]} 44... h6 {[%clk 0:00:05.8]} 45. Bg3 {[%clk
0:00:11.1]} 45... Nce7 {[%clk 0:00:06.5]} 46. Be5 {[%clk 0:00:10.8]} 46... Nf5
{[%clk 0:00:06.9]} 47. Bh2 {[%clk 0:00:09]} 47... Kc6 {[%clk 0:00:07.4]} 48. Kc2
{[%clk 0:00:09.2]} 48... h5 {[%clk 0:00:06.6]} 49. Bf3 {[%clk 0:00:08.7]} 49...
Nd4+ {[%clk 0:00:06.7]} 50. Kd3 {[%clk 0:00:08.2]} 50... Nxf3 {[%clk 0:00:07.6]}
51. Bg3 {[%clk 0:00:08.4]} 51... h4 {[%clk 0:00:08.3]} 52. Bb8 {[%clk
0:00:06.5]} 52... Kb7 {[%clk 0:00:07.9]} 53. Bd6 {[%clk 0:00:04.8]} 53... Kc6
{[%clk 0:00:08.4]} 54. Bb8 {[%clk 0:00:04.5]} 54... h3 {[%clk 0:00:09.3]} 55.
Ke2 {[%clk 0:00:04.7]} 55... h2 {[%clk 0:00:09.7]} 56. Bxh2 {[%clk 0:00:04.5]}
56... Nxh2 {[%clk 0:00:10.6]} 57. f4 {[%clk 0:00:05]} 57... Nxf4+ {[%clk
0:00:10.5]} 58. Kd2 {[%clk 0:00:04.7]} 58... Nd5 {[%clk 0:00:11.4]} 59. Kc2
{[%clk 0:00:04.9]} 59... b4 {[%clk 0:00:11.4]} 60. Kb3 {[%clk 0:00:05.4]} 60...
Kb5 {[%clk 0:00:12.3]} 61. Ka2 {[%clk 0:00:05.4]} 61... a5 {[%clk 0:00:13.2]}
62. Kb3 {[%clk 0:00:05.1]} 62... a4+ {[%clk 0:00:14.1]} 63. Kb2 {[%clk
0:00:05.5]} 63... Kc4 {[%clk 0:00:15]} 64. Kc2 {[%clk 0:00:05.8]} 64... a3
{[%clk 0:00:15.9]} 65. Kb1 {[%clk 0:00:05.7]} 65... b3 {[%clk 0:00:16.5]} 66.
Ka1 {[%clk 0:00:05.9]} 66... Kc3 {[%clk 0:00:14.8]} 67. Kb1 {[%clk 0:00:06.3]}
67... a2+ {[%clk 0:00:14.7]} 68. Ka1 {[%clk 0:00:06.8]} 68... b2+ {[%clk
0:00:15.4]} 69. Kxa2 {[%clk 0:00:07.3]} 69... Kc2 {[%clk 0:00:16.3]} 70. Ka3
{[%clk 0:00:07.4]} 70... b1=Q {[%clk 0:00:17.2]} 0-1

[Event "Early-Titled-Tuesday-Blitz-October-03-2023"]
[Site "Chess.com"]
[Date "2023.10.03"]
[Round "10"]
[White "Daffidollchess2"]
[Black "zajka-molotok"]
[Result "0-1"]
[WhiteElo "2688"]
[BlackElo "2582"]
[TimeControl "180+1"]
[EndTime "9:58:09 PDT"]
[Termination "zajka-molotok won on time"]

1. e4 {[%clk 0:03:00.2]} 1... c5 {[%clk 0:02:58.6]} 2. Nf3 {[%clk 0:03:00.4]}
2... Nc6 {[%clk 0:02:58.8]} 3. d4 {[%clk 0:03:00.8]} 3... cxd4 {[%clk
0:02:58.7]} 4. Nxd4 {[%clk 0:03:01.7]} 4... Nf6 {[%clk 0:02:59]} 5. Nc3 {[%clk
0:03:01.5]} 5... e5 {[%clk 0:02:58.5]} 6. Ndb5 {[%clk 0:03:01.5]} 6... d6 {[%clk
0:02:58.4]} 7. Bg5 {[%clk 0:03:01.9]} 7... a6 {[%clk 0:02:57]} 8. Na3 {[%clk
0:03:02.5]} 8... b5 {[%clk 0:02:54.8]} 9. Nd5 {[%clk 0:03:02.9]} 9... Be7 {[%clk
0:02:53.4]} 10. Bxf6 {[%clk 0:03:02.7]} 10... Bxf6 {[%clk 0:02:43.8]} 11. c4
{[%clk 0:03:02]} 11... b4 {[%clk 0:02:42.7]} 12. Nc2 {[%clk 0:03:02]} 12... a5
{[%clk 0:02:40.1]} 13. g3 {[%clk 0:02:57.2]} 13... g6 {[%clk 0:02:35.6]} 14. h4
{[%clk 0:02:57]} 14... Bg7 {[%clk 0:02:21.7]} 15. h5 {[%clk 0:02:56.1]} 15...
Be6 {[%clk 0:02:13.7]} 16. Bg2 {[%clk 0:02:36.9]} 16... Rc8 {[%clk 0:02:00]} 17.
b3 {[%clk 0:02:31.8]} 17... O-O {[%clk 0:01:57.6]} 18. hxg6 {[%clk 0:02:31.4]}
18... hxg6 {[%clk 0:01:51.8]} 19. Qd2 {[%clk 0:02:31]} 19... Nd4 {[%clk
0:01:39]} 20. Nxd4 {[%clk 0:02:28.6]} 20... exd4 {[%clk 0:01:39.9]} 21. Nf4
{[%clk 0:02:15]} 21... d3 {[%clk 0:01:36.6]} 22. Rc1 {[%clk 0:02:08.5]} 22...
Qg5 {[%clk 0:01:08.2]} 23. Qxd3 {[%clk 0:01:59.8]} 23... Bc3+ {[%clk 0:01:02.3]}
24. Kf1 {[%clk 0:01:53.1]} 24... Be5 {[%clk 0:00:58.6]} 25. Ne2 {[%clk
0:01:51.4]} 25... Qf6 {[%clk 0:00:51.7]} 26. Bh3 {[%clk 0:01:40]} 26... Kg7
{[%clk 0:00:47.5]} 27. Kg2 {[%clk 0:01:39.7]} 27... Rh8 {[%clk 0:00:41.9]} 28.
Bxe6 {[%clk 0:01:39.2]} 28... fxe6 {[%clk 0:00:42.8]} 29. Rcd1 {[%clk
0:01:29.5]} 29... g5 {[%clk 0:00:40.4]} 30. Rxh8 {[%clk 0:01:24.5]} 30... Rxh8
{[%clk 0:00:39.7]} 31. Rh1 {[%clk 0:01:24.8]} 31... Rxh1 {[%clk 0:00:37.2]} 32.
Kxh1 {[%clk 0:01:24.4]} 32... Qxf2 {[%clk 0:00:37.7]} 33. c5 {[%clk 0:01:12]}
33... dxc5 {[%clk 0:00:35.2]} 34. Qd7+ {[%clk 0:01:11.7]} 34... Qf7 {[%clk
0:00:27.2]} 35. Qd3 {[%clk 0:01:06.4]} 35... Qf1+ {[%clk 0:00:22.7]} 36. Kh2
{[%clk 0:01:05.9]} 36... Bd4 {[%clk 0:00:23.3]} 37. Qd2 {[%clk 0:00:54.3]} 37...
Qf2+ {[%clk 0:00:22.7]} 38. Kh3 {[%clk 0:00:53.9]} 38... Kf6 {[%clk 0:00:21]}
39. Kg4 {[%clk 0:00:52.6]} 39... Qe3 {[%clk 0:00:19.1]} 40. Qc2 {[%clk
0:00:46.6]} 40... a4 {[%clk 0:00:15.1]} 41. Nxd4 {[%clk 0:00:45.7]} 41... cxd4
{[%clk 0:00:14.2]} 42. bxa4 {[%clk 0:00:40.6]} 42... d3 {[%clk 0:00:14.4]} 43.
Qb2+ {[%clk 0:00:40.9]} 43... e5 {[%clk 0:00:13.4]} 44. Qxb4 {[%clk 0:00:41.2]}
44... Qe2+ {[%clk 0:00:12.3]} 45. Kh3 {[%clk 0:00:40.4]} 45... Qf1+ {[%clk
0:00:11.9]} 46. Kg4 {[%clk 0:00:38.6]} 46... Qe2+ {[%clk 0:00:12]} 47. Kh3
{[%clk 0:00:39.2]} 47... d2 {[%clk 0:00:12.4]} 48. Qd6+ {[%clk 0:00:37.9]} 48...
Kf7 {[%clk 0:00:12.3]} 49. Qd5+ {[%clk 0:00:37.7]} 49... Ke8 {[%clk 0:00:11.8]}
50. Qxe5+ {[%clk 0:00:38]} 50... Kd7 {[%clk 0:00:12.2]} 51. Qd5+ {[%clk
0:00:38.3]} 51... Kc7 {[%clk 0:00:12.4]} 52. Qc5+ {[%clk 0:00:39]} 52... Kb7
{[%clk 0:00:12.9]} 53. Qd5+ {[%clk 0:00:38.4]} 53... Kb6 {[%clk 0:00:12.7]} 54.
Qd6+ {[%clk 0:00:37.6]} 54... Ka5 {[%clk 0:00:12.2]} 55. Qc5+ {[%clk 0:00:37.6]}
55... Kxa4 {[%clk 0:00:12.5]} 56. Qd4+ {[%clk 0:00:37.7]} 56... Ka3 {[%clk
0:00:12.5]} 57. Qc3+ {[%clk 0:00:38.2]} 57... Kxa2 {[%clk 0:00:12.8]} 58. Qc2+
{[%clk 0:00:38.8]} 58... Ka3 {[%clk 0:00:12.9]} 59. Qc3+ {[%clk 0:00:39.5]}
59... Ka4 {[%clk 0:00:13.2]} 60. Qd4+ {[%clk 0:00:38.4]} 60... Kb3 {[%clk
0:00:13.6]} 61. Qb6+ {[%clk 0:00:38.7]} 61... Kc2 {[%clk 0:00:13.6]} 62. Qc5+
{[%clk 0:00:39.3]} 62... Kd3 {[%clk 0:00:13.7]} 63. Qd5+ {[%clk 0:00:39.4]}
63... Ke3 {[%clk 0:00:13.9]} 64. Qc5+ {[%clk 0:00:39.8]} 64... Kf3 {[%clk
0:00:13.4]} 65. Qf5+ {[%clk 0:00:39.8]} 65... Ke3 {[%clk 0:00:13.3]} 66. Qxg5+
{[%clk 0:00:40.3]} 66... Kf2 {[%clk 0:00:12.6]} 67. Qf4+ {[%clk 0:00:38.1]}
67... Ke1 {[%clk 0:00:12.2]} 0-1

[Event "Early-Titled-Tuesday-Blitz-October-03-2023"]
[Site "Chess.com"]
[Date "2023.10.03"]
[Round "10"]
[White "ferrufino64"]
[Black "Flaccidmoves"]
[Result "1-0"]
[WhiteElo "2242"]
[BlackElo "2443"]
[TimeControl "180+1"]
[EndTime "9:58:10 PDT"]
[Termination "ferrufino64 won on time"]

1. e4 {[%clk 0:02:56]} 1... Nf6 {[%clk 0:02:59.2]} 2. e5 {[%clk 0:02:55]} 2...
Nd5 {[%clk 0:02:59.9]} 3. c4 {[%clk 0:02:51.1]} 3... Nb6 {[%clk 0:03:00.3]} 4.
d4 {[%clk 0:02:51.6]} 4... d6 {[%clk 0:03:00.9]} 5. exd6 {[%clk 0:02:51.8]} 5...
exd6 {[%clk 0:03:01.8]} 6. Nc3 {[%clk 0:02:50.8]} 6... Bf5 {[%clk 0:03:02.1]} 7.
Bd3 {[%clk 0:02:46]} 7... Bxd3 {[%clk 0:02:58.9]} 8. Qxd3 {[%clk 0:02:46]} 8...
Be7 {[%clk 0:02:59.4]} 9. Nge2 {[%clk 0:02:45.8]} 9... O-O {[%clk 0:02:59.7]}
10. O-O {[%clk 0:02:45.2]} 10... Nc6 {[%clk 0:03:00.2]} 11. a3 {[%clk
0:02:41.3]} 11... Re8 {[%clk 0:02:52.5]} 12. b4 {[%clk 0:02:40.4]} 12... d5
{[%clk 0:02:51.2]} 13. c5 {[%clk 0:02:35.9]} 13... Nc4 {[%clk 0:02:51.1]} 14.
Bf4 {[%clk 0:02:34.5]} 14... Bf6 {[%clk 0:02:41.1]} 15. b5 {[%clk 0:02:02.8]}
15... N6a5 {[%clk 0:02:40.5]} 16. a4 {[%clk 0:02:02.6]} 16... c6 {[%clk
0:02:31.5]} 17. Rab1 {[%clk 0:01:58.9]} 17... Qc8 {[%clk 0:02:01.8]} 18. h3
{[%clk 0:01:48]} 18... g6 {[%clk 0:01:45]} 19. Ng3 {[%clk 0:01:45.5]} 19... h5
{[%clk 0:01:38.5]} 20. Rfe1 {[%clk 0:01:37.8]} 20... Qd7 {[%clk 0:01:32]} 21.
bxc6 {[%clk 0:01:21.7]} 21... bxc6 {[%clk 0:01:31.2]} 22. Nf1 {[%clk 0:01:19.5]}
22... Rxe1 {[%clk 0:01:26.8]} 23. Rxe1 {[%clk 0:01:18.7]} 23... Re8 {[%clk
0:01:27.3]} 24. Rxe8+ {[%clk 0:01:13.6]} 24... Qxe8 {[%clk 0:01:28.2]} 25. Ne3
{[%clk 0:01:13.8]} 25... Nxe3 {[%clk 0:01:20.3]} 26. Bxe3 {[%clk 0:01:13.7]}
26... Nc4 {[%clk 0:01:19.8]} 27. Nd1 {[%clk 0:01:07.5]} 27... Qb8 {[%clk
0:01:15.3]} 28. Qc2 {[%clk 0:00:54.6]} 28... Qb4 {[%clk 0:01:12.3]} 29. g3
{[%clk 0:00:29.5]} 29... Qe1+ {[%clk 0:01:02.8]} 30. Kg2 {[%clk 0:00:28.5]}
30... Kg7 {[%clk 0:00:44.6]} 31. h4 {[%clk 0:00:27.3]} 31... Na3 {[%clk
0:00:30.2]} 32. Qd3 {[%clk 0:00:24.5]} 32... Nc4 {[%clk 0:00:27.8]} 33. Qc2
{[%clk 0:00:20.6]} 33... Qb4 {[%clk 0:00:26.2]} 34. Kf3 {[%clk 0:00:10.6]} 34...
Qb8 {[%clk 0:00:19.1]} 35. Kg2 {[%clk 0:00:10.7]} 35... Qc8 {[%clk 0:00:19.1]}
36. Qd3 {[%clk 0:00:10.3]} 36... Qg4 {[%clk 0:00:19.1]} 37. Nc3 {[%clk
0:00:07.3]} 37... Nb2 {[%clk 0:00:15.2]} 38. Qd2 {[%clk 0:00:05.8]} 38... Nc4
{[%clk 0:00:15.4]} 39. Qd3 {[%clk 0:00:06.2]} 39... Bd8 {[%clk 0:00:14.8]} 40.
Ne2 {[%clk 0:00:06.1]} 40... Bc7 {[%clk 0:00:14.2]} 41. Bc1 {[%clk 0:00:06]}
41... Qe6 {[%clk 0:00:11.3]} 42. Bf4 {[%clk 0:00:04]} 42... Ba5 {[%clk
0:00:10.4]} 43. Bc1 {[%clk 0:00:03.7]} 43... Qe4+ {[%clk 0:00:09.7]} 44. Qxe4
{[%clk 0:00:03.9]} 44... dxe4 {[%clk 0:00:10.6]} 45. Be3 {[%clk 0:00:03.2]}
45... f5 {[%clk 0:00:08.6]} 46. Nf4 {[%clk 0:00:03.3]} 46... Nxe3+ {[%clk
0:00:07]} 47. fxe3 {[%clk 0:00:03.4]} 47... Kf6 {[%clk 0:00:06.6]} 48. Kf2
{[%clk 0:00:03.5]} 48... Kg7 {[%clk 0:00:05.2]} 49. Ne6+ {[%clk 0:00:03.4]}
49... Kh6 {[%clk 0:00:04.8]} 50. Ng5 {[%clk 0:00:03.8]} 50... Bd2 {[%clk
0:00:02.5]} 51. Nf7+ {[%clk 0:00:03.8]} 51... Kg7 {[%clk 0:00:03]} 52. Ne5
{[%clk 0:00:04.7]} 52... Kf6 {[%clk 0:00:02.2]} 53. Nxc6 {[%clk 0:00:05]} 53...
g5 {[%clk 0:00:03.1]} 54. hxg5+ {[%clk 0:00:04.1]} 54... Kxg5 {[%clk 0:00:04]}
55. Ne5 {[%clk 0:00:04.3]} 55... Bb4 {[%clk 0:00:03.2]} 56. Nc4 {[%clk
0:00:04.1]} 56... f4 {[%clk 0:00:02]} 57. exf4+ {[%clk 0:00:03.7]} 57... Kg4
{[%clk 0:00:02.2]} 58. Ne5+ {[%clk 0:00:03.5]} 58... Kf5 {[%clk 0:00:02.1]} 59.
Ke3 {[%clk 0:00:03.8]} 59... Ba3 {[%clk 0:00:02.1]} 60. c6 {[%clk 0:00:02.9]}
60... Bc1+ {[%clk 0:00:02.2]} 61. Kf2 {[%clk 0:00:03.4]} 61... Ke6 {[%clk
0:00:02.1]} 62. Ke2 {[%clk 0:00:02.5]} 62... e3 {[%clk 0:00:03]} 63. Nd3 {[%clk
0:00:02.7]} 63... Ba3 {[%clk 0:00:02.2]} 64. Ne5 {[%clk 0:00:02.6]} 64... Kd6
{[%clk 0:00:02.4]} 65. Kxe3 {[%clk 0:00:03.1]} 65... h4 {[%clk 0:00:02]} 66.
gxh4 {[%clk 0:00:03.1]} 66... a5 {[%clk 0:00:02.4]} 67. Ke4 {[%clk 0:00:03.6]}
67... Bc1 {[%clk 0:00:02.9]} 68. d5 {[%clk 0:00:04]} 68... Kc7 {[%clk
0:00:03.5]} 69. Nc4 {[%clk 0:00:04.9]} 1-0